fUST/lending_fUST_20260113
["ID","MTS","AMOUNT","RATE_DAILY","PERIOD"]
[401475301,1768254639140,-500.0,0.00013699,2]
[401475302,1768254639150,-500.0,0.00013699,2]
[401475303,1768254639160,-500.0,0.00013699,2]
[401475304,1768254639169,-340.8479761,0.00013707,2]
[401475305,1768254639179,-401.12987392,0.00013721,2]
[401475306,1768254639188,-401.12987388,0.00013807,2]
[401475307,1768254639197,-1000.0,0.00013821,2]
[401475308,1768254639206,-1000.0,0.00013821,2]
[401475309,1768254639216,-1000.0,0.00013821,2]
[401475310,1768254639225,-1000.0,0.00013821,2]
[401475311,1768254639235,-958.38483251,0.00013821,2]
[401475312,1768254639245,-1000.0,0.00013821,2]
[401475313,1768254639255,-1000.0,0.00013821,2]
[401475314,1768254639265,-1000.0,0.00013821,2]
[401475315,1768254639275,-1000.80134157,0.00013821,2]
[401475316,1768254639285,-1000.0,0.00013821,2]
[401475317,1768254639294,-1000.0,0.00013821,2]
[401475318,1768254639303,-923.32811707,0.00013821,2]
[401475319,1768254639312,-1000.0,0.00013821,2]
[401475320,1768254639321,-901.64301006,0.00013821,2]
[401475321,1768254639330,-500.0,0.00013821,2]
[401475322,1768254639339,-1000.0,0.00013821,2]
[401475323,1768254639349,-1000.0,0.00013821,2]
[401475324,1768254639358,-1000.0,0.00013821,2]
[401475325,1768254639367,-1000.0,0.00013821,2]
[401475326,1768254639377,-1000.0,0.00013821,2]
[401475327,1768254639386,-1000.0,0.00013821,2]
[401475328,1768254639396,-180.33880903,0.00013821,2]
[401475329,1768254639405,-500.0,0.00013821,2]
[401475330,1768254639414,-1000.0,0.00013821,2]
[401475331,1768254639424,-1000.0,0.00013821,2]
[401475332,1768254639433,-1000.0,0.00013821,2]
[401475333,1768254639443,-1000.0,0.00013821,2]
[401475334,1768254639452,-1000.0,0.00013821,2]
[401475335,1768254639461,-1000.0,0.00013821,2]
[401475336,1768254639471,-1000.0,0.00013821,2]
[401475337,1768254639481,-1000.0,0.00013821,2]
[401475338,1768254639491,-1000.0,0.00013821,2]
[401475339,1768254639500,-1000.0,0.00013821,2]
[401475340,1768254639510,-527.82907751,0.00013836,2]
[401475341,1768254639520,-401.12987388,0.00013893,2]
[401475342,1768254639529,-294.20360383,0.00013973,2]
[401475343,1768254639539,-401.12987388,0.00013979,2]
[401475344,1768254639550,-401.12987388,0.00014065,2]
[401475345,1768254639560,-151.0,0.000141,2]
[401475346,1768254639569,-151.0,0.000141,2]
[401475347,1768254639579,-151.0,0.000141,2]
[401475348,1768254639588,-151.0,0.000141,2]
[401475349,1768254639598,-151.0,0.000141,2]
[401475350,1768254639608,-151.0,0.000141,2]
[401475351,1768254639617,-151.0,0.000141,2]
[401475352,1768254639627,-151.0,0.000141,2]
[401475353,1768254639636,-587.0,0.00014117,2]
[401475354,1768254639646,-496.84724473,0.00014146,2]
[401475355,1768254639655,-500.0,0.00014146,2]
[401475356,1768254639665,-500.0,0.00014146,2]
[401475357,1768254639674,-500.0,0.00014146,2]
[401475358,1768254639684,-187.17148748,0.00014146,2]
[401475359,1768254639694,-500.0,0.00014146,2]
[401475360,1768254639703,-500.0,0.00014146,2]
[401475361,1768254639712,-500.0,0.00014146,2]
[401475362,1768254639721,-500.0,0.00014146,2]
[401475363,1768254639732,-1000000.0,0.00014147,2]
[401475364,1768254639742,-2351.0,0.00014165,2]
[401475365,1768254639751,-600.0,0.00014221,2]
[401475366,1768254639761,-500.512985,0.00014247,2]
[401475367,1768254639771,-250.0,0.00014247,2]
[401475368,1768254639781,-1000.0,0.00014247,2]
[401475369,1768254639791,-1000.0,0.00014247,2]
[401475370,1768254639800,-1000.0,0.00014247,2]
[401475371,1768254639810,-1000.0,0.00014247,2]
[401475372,1768254639819,-500.0,0.00014247,2]
[401475373,1768254639829,-500.0,0.00014247,2]
[401475374,1768254639838,-1000.0,0.00014247,2]
[401475376,1768254639847,-1000.0,0.00014247,2]
[401475378,1768254639857,-675.05887209,0.00014247,2]
[401475379,1768254639866,-502.38932755,0.00014247,2]
[401475380,1768254639876,-502.56553603,0.00014247,2]
[401475381,1768254639886,-1000.0,0.00014247,2]
[401475382,1768254639895,-499.83703447,0.00014247,2]
[401475383,1768254639905,-529.61129365,0.00014247,2]
[401475384,1768254639915,-1000.0,0.00014247,2]
[401475385,1768254639924,-1000.0,0.00014247,2]
[401475386,1768254639933,-500.0,0.00014247,2]
[401475387,1768254639943,-658.4999436,0.00014247,2]
[401475388,1768254639953,-1000.0,0.00014247,2]
[401475389,1768254639962,-1014.57441802,0.00014247,2]
[401475390,1768254639972,-1000.0,0.00014247,2]
[401475391,1768254639986,-1000.0,0.00014247,2]
[401475392,1768254639996,-1000.0,0.00014247,2]
[401475393,1768254640005,-1000.0,0.00014247,2]
[401475394,1768254640015,-1000.0,0.00014247,2]
[401475395,1768254640026,-1006.00253074,0.00014247,2]
[401475396,1768254640035,-1000.0,0.00014247,2]
[401475404,1768254640142,-1000.0,0.00014247,2]
[401475406,1768254640151,-638.41119879,0.00014247,2]
[401475408,1768254640162,-1000.0,0.00014247,2]
[401475409,1768254640171,-1000.0,0.00014247,2]
[401475410,1768254640180,-1000.0,0.00014247,2]
[401475411,1768254640189,-1000.0,0.00014247,2]
[401475412,1768254640198,-1000.0,0.00014247,2]
[401475413,1768254640207,-1000.0,0.00014247,2]
[401475414,1768254640217,-1000.0,0.00014247,2]
[401475415,1768254640236,-1000.0,0.00014247,2]
[401475416,1768254640246,-1000.0,0.00014247,2]
[401475417,1768254640255,-1000.0,0.00014247,2]
[401475418,1768254640264,-1000.0,0.00014247,2]
[401475419,1768254640273,-1000.0,0.00014247,2]
[401475420,1768254640286,-1000.0,0.00014247,2]
[401475421,1768254640306,-1000.0,0.00014247,2]
[401475422,1768254640315,-1000.0,0.00014247,2]
[401475423,1768254640324,-1000.0,0.00014247,2]
[401475424,1768254640334,-1000.0,0.00014247,2]
[401475425,1768254640343,-1500.0,0.00014368,2]
[401475426,1768254640352,-603.18109463,0.00014368,2]
[401475427,1768254640361,-500.0,0.00014368,2]
[401475428,1768254640370,-1500.0,0.00014368,2]
[401475429,1768254640379,-1500.0,0.00014368,2]
[401475430,1768254640388,-763.96834089,0.00014368,2]
[401475431,1768254640397,-1500.0,0.00014368,2]
[401475432,1768254640406,-985.3091038,0.00014368,2]
[401475433,1768254640415,-1155.72124395,0.00014368,2]
[401475434,1768254640423,-677.20505665,0.00014368,2]
[401475435,1768254640432,-1500.0,0.00014368,2]
[401475436,1768254640441,-1000.0,0.00014368,2]
[401475437,1768254640450,-1500.0,0.00014368,2]
[401475438,1768254640459,-1500.0,0.00014368,2]
[401475439,1768254640468,-1500.0,0.00014368,2]
[401475440,1768254640477,-1500.0,0.00014368,2]
[401475441,1768254640487,-1002.33157316,0.00014368,2]
[401475443,1768254640497,-1500.0,0.00014368,2]
[401475444,1768254640506,-500.0,0.00014368,2]
[401475445,1768254640514,-1500.0,0.00014368,2]
[401475446,1768254640524,-1000.0,0.00014368,2]
[401475448,1768254640533,-1500.0,0.00014368,2]
[401475450,1768254640543,-1500.0,0.00014368,2]
[401475452,1768254640552,-1000.0,0.00014368,2]
[401475454,1768254640562,-1500.0,0.00014368,2]
[401475456,1768254640571,-1500.0,0.00014368,2]
[401475458,1768254640580,-864.0,0.00014449,2]
[401475460,1768254640590,-5000.0,0.0001451,2]
[401475462,1768254640599,-100000.0,0.0001459,2]
[401475464,1768254640608,-900.0,0.00014768,2]
[401475466,1768254640617,-1500.0,0.00014795,2]
[401475468,1768254640626,-1500.0,0.00014795,2]
[401475470,1768254640636,-1500.0,0.00014795,2]
[401475472,1768254640645,-1000.0,0.00014795,2]
[401475474,1768254640654,-1500.0,0.00014795,2]
[401475476,1768254640663,-1500.0,0.00014795,2]
[401475478,1768254640673,-1500.0,0.00014795,2]
[401475480,1768254640684,-1500.0,0.00014795,2]
[401475482,1768254640694,-621.58832465,0.00014795,2]
[401475484,1768254640703,-1500.0,0.00014795,2]
[401475486,1768254640712,-1000.0,0.00014795,2]
[401475488,1768254640721,-1500.0,0.00014795,2]
[401475490,1768254640731,-1000.0,0.00014795,2]
[401475492,1768254640740,-1500.0,0.00014795,2]
[401475494,1768254640749,-1500.0,0.00014795,2]
[401475496,1768254640758,-710.84440634,0.00014795,2]
[401475498,1768254640768,-500.0,0.00014795,2]
[401475500,1768254640777,-1500.0,0.00014795,2]
[401475502,1768254640786,-1000.0,0.00014795,2]
[401475504,1768254640795,-1500.0,0.00014795,2]
[401475506,1768254640804,-1500.0,0.00014795,2]
[401475508,1768254640813,-500.0,0.00014795,2]
[401475510,1768254640823,-1000.0,0.00014795,2]
[401475512,1768254640832,-964.41428729,0.00014795,2]
[401475514,1768254640841,-1500.0,0.00014795,2]
[401475516,1768254640850,-1500.0,0.00014795,2]
[401475518,1768254640860,-1500.0,0.00014795,2]
[401475520,1768254640869,-1509.97698878,0.00014795,2]
[401475522,1768254640879,-1500.0,0.00014795,2]
[401475524,1768254640888,-1500.0,0.00014795,2]
[401475526,1768254640898,-151.48350527,0.000149,2]
[401475528,1768254640907,-466.62413338,0.00014916,2]
[401475530,1768254640917,-500.0,0.00014916,2]
[401475532,1768254640927,-500.0,0.00014916,2]
[401475534,1768254640936,-2000.0,0.00014916,2]
[401475536,1768254640946,-2000.0,0.00014916,2]
[401475538,1768254640955,-2000.0,0.00014916,2]
[401475540,1768254640964,-2000.0,0.00014916,2]
[401475542,1768254640974,-2000.0,0.00014916,2]
[401475544,1768254640987,-2000.0,0.00014916,2]
[401475546,1768254640997,-613.36442406,0.00014916,2]
[401475548,1768254641007,-2000.0,0.00014916,2]
[401475550,1768254641016,-1874.68815725,0.00014916,2]
[401475552,1768254641027,-2000.0,0.00014916,2]
[401475554,1768254641037,-2000.0,0.00014916,2]
[401475556,1768254641046,-500.0,0.00015315,2]
[401475558,1768254641056,-500.0,0.00015315,2]
[401475560,1768254641065,-500.0,0.00015315,2]
[401475562,1768254641074,-500.0,0.00015315,2]
[401475564,1768254641083,-500.0,0.00015315,2]
[401475566,1768254641093,-500.0,0.00015315,2]
[401475568,1768254641103,-500.0,0.00015315,2]
[401475570,1768254641112,-500.0,0.00015315,2]
[401475572,1768254641121,-500.0,0.00015315,2]
[401475574,1768254641130,-500.0,0.00015315,2]
[401475576,1768254641139,-500.0,0.00015315,2]
[401475578,1768254641149,-500.0,0.00015315,2]
[401475580,1768254641158,-364.86992356,0.00015315,2]
[401475582,1768254641166,-500.0,0.00015342,2]
[401475584,1768254641175,-500.0,0.00015342,2]
[401475586,1768254641184,-1202.30233565,0.00015342,2]
[401475588,1768254641195,-500.0,0.00015342,2]
[401475590,1768254641204,-526.41190133,0.00015342,2]
[401475592,1768254641213,-2000.0,0.00015342,2]
[401475594,1768254641224,-237.22168392,0.00015342,2]
[401475596,1768254641236,-1731.95532903,0.00015342,2]
[401475599,1768254641248,-2000.0,0.00015342,2]
[401475601,1768254641260,-517.83301398,0.00015342,2]
[401475603,1768254641272,-500.0,0.00015342,2]
[401475605,1768254641282,-2000.0,0.00015342,2]
[401475607,1768254641292,-2000.0,0.00015342,2]
[401475610,1768254641313,-507.57819343,0.00015342,2]
[401475612,1768254641325,-2000.0,0.00015342,2]
[401475614,1768254641336,-967.72472625,0.00015342,2]
[401475617,1768254641348,-2000.0,0.00015342,2]
[401475619,1768254641361,-2000.0,0.00015342,2]
[401475621,1768254641372,-2500.0,0.00015464,2]
[401475623,1768254641383,-2500.0,0.00015464,2]
[401475626,1768254641395,-2500.0,0.00015464,2]
[401475628,1768254641407,-2500.0,0.00015464,2]
[401475630,1768254641419,-2500.0,0.00015464,2]
[401475632,1768254641431,-2500.0,0.00015464,2]
[401475635,1768254641442,-897.40421659,0.00015464,2]
[401475637,1768254641453,-2500.0,0.00015464,2]
[401475639,1768254641465,-2500.0,0.00015464,2]
[401475641,1768254641477,-823.0,0.00015502,2]
[401475644,1768254641487,-1661.0,0.00015582,2]
[401475646,1768254641499,-392.84173517,0.00015707,2]
[401475648,1768254641512,-2500.0,0.0001589,2]
[401475650,1768254641523,-1000.0,0.0001589,2]
[401475653,1768254641534,-500.0,0.0001589,2]
[401475655,1768254641544,-2500.0,0.0001589,2]
[401475657,1768254641554,-2000.0,0.0001589,2]
[401475659,1768254641565,-501.21372141,0.0001589,2]
[401475661,1768254641576,-1090.98190772,0.0001589,2]
[401475664,1768254641587,-1000.0,0.00015894,2]
[401475666,1768254641599,-3000.0,0.00016012,2]
[401475668,1768254641611,-638.85906661,0.00016012,2]
[401475670,1768254641623,-1664.74090695,0.00016012,2]
[401475673,1768254641634,-2000.0,0.00016012,2]
[401475675,1768254641646,-2500.0,0.00016012,2]
[401475677,1768254641658,-3000.0,0.00016012,2]
[401475680,1768254641670,-3000.0,0.00016012,2]
[401475682,1768254641682,-228.70879455,0.00016226,7]
[401475684,1768254641693,-500.0,0.00016438,2]
[401475686,1768254641704,-359.2981389,0.00016438,2]
[401475689,1768254641715,-3000.0,0.00016438,2]
[401475691,1768254641724,-1000.0,0.0001656,2]
[401475693,1768254641735,-2533.9237819,0.0001656,2]
[401475695,1768254641746,-2000.0,0.0001656,2]
[401475697,1768254641758,-6894.20731275,0.00016757,2]
[401475700,1768254641770,-3500.0,0.00016986,2]
[401475702,1768254641782,-1152.0,0.00017022,2]
[401475704,1768254641792,-2844.5358916,0.00017343,2]
[401475706,1768254641802,-5000.0,0.00017412,2]
[401475708,1768254641813,-1000.0,0.00017483,2]
[401475711,1768254641824,-244.0,0.00017483,2]
[401475713,1768254641836,-512.33286536,0.00017534,2]
[401475715,1768254641846,-1041.66666667,0.0001755,2]
[401475717,1768254641857,-2844.5358916,0.0001755,2]
[401475719,1768254641867,-444.83549423,0.00017707,2]
[401475721,1768254641877,-2844.5358916,0.00017852,2]
[401475724,1768254641887,-500.0,0.00018306,7]
[401475726,1768254641898,-2844.5358916,0.00018332,2]
[401475728,1768254641909,-706.0,0.00018398,2]
[401475730,1768254641920,-2844.5358916,0.00018556,2]
[401475732,1768254641931,-1366.0,0.00018599,2]
[401475734,1768254641941,-628.0,0.00018599,2]
[401475737,1768254641952,-715.0,0.00018599,2]
[401475739,1768254641963,-417.0,0.00018599,2]
[401475741,1768254641975,-728.0,0.0001867,2]
[401475743,1768254641989,-1613.0,0.00018692,2]
[401475745,1768254641999,-2844.5358916,0.00018842,2]
[401475748,1768254642011,-303.10001603,0.000189,2]
[401475750,1768254642021,-303.10001603,0.000189,2]
[401475751,1768254642032,-181.08010149,0.00018952,2]
[401475753,1768254642042,-2398.4119403,0.00018952,2]
[401475755,1768254642054,-187.78006525,0.00018952,2]
[401475758,1768254642065,-194.72792766,0.00018952,2]
[401475760,1768254642075,-201.93286099,0.00018952,2]
[401475762,1768254642086,-209.40437684,0.00018952,2]
[401475764,1768254642097,-217.15233878,0.00018952,2]
[401475766,1768254642108,-225.18697532,0.00018952,2]
[401475768,1768254642119,-233.51889341,0.00018952,2]
[401475771,1768254642129,-242.15909246,0.00018952,2]
[401475773,1768254642139,-251.11897888,0.00018952,2]
[401475775,1768254642150,-260.4103811,0.00018952,2]
[401475777,1768254642160,-270.0455652,0.00018952,2]
[401475779,1768254642171,-280.03725112,0.00018952,2]
[401475781,1768254642181,-290.39862941,0.00018952,2]
[401475784,1768254642192,-301.1433787,0.00018952,2]
[401475786,1768254642202,-496.47127164,0.00018952,2]
[401475788,1768254642213,-1000.0,0.00018952,5]
[401475790,1768254642224,-728.0,0.0001899,2]
[401475792,1768254642235,-728.0,0.0001899,2]
[401475794,1768254642246,-738.0,0.0001899,2]
[401475796,1768254642256,-151.0,0.00019019,2]
[401475798,1768254642267,-454.65002405,0.00019089,2]
[401475801,1768254642277,-303.10001603,0.00019089,2]
[401475803,1768254642288,-2844.5358916,0.00019111,2]
[401475805,1768254642299,-800.0,0.00019155,2]
[401475807,1768254642309,-800.0,0.00019173,2]
[401475809,1768254642319,-17700.54,0.000192,2]
[401475811,1768254642330,-800.0,0.00019212,2]
[401475814,1768254642340,-1000.0,0.00019231,2]
[401475816,1768254642351,-492.0,0.00019231,2]
[401475818,1768254642361,-800.0,0.00019236,2]
[401475820,1768254642372,-800.0,0.00019237,2]
[401475822,1768254642383,-800.0,0.00019269,2]
[401475824,1768254642393,-303.10001603,0.00019278,2]
[401475827,1768254642404,-22054.27741379,0.00019283,3]
[401475829,1768254642416,-564.47210763,0.00019289,2]
[401475831,1768254642426,-800.0,0.00019379,2]
[401475833,1768254642436,-800.0,0.00019387,2]
[401475835,1768254642447,-800.0,0.00019399,2]
[401475837,1768254642458,-500.0,0.00019402,7]
[401475851,1768254642468,-800.0,0.00019422,2]
[401475853,1768254642597,-2844.5358916,0.00019427,2]
[401475855,1768254642607,-151.0,0.00019449,2]
[401475857,1768254642616,-303.10001603,0.00019467,2]
[401475859,1768254642625,-2487.15318209,0.000195,2]
[401475861,1768254642634,-514.84070869,0.000195,2]
[401475863,1768254642643,-22054.27,0.0001953,3]
[401475865,1768254642652,-1112.92148416,0.00019551,2]
[401475867,1768254642662,-1506.49548668,0.00019551,2]
[401475869,1768254642671,-13285.05942354,0.00019556,2]
[401475871,1768254642680,-2844.53589163,0.0001956,2]
[401475873,1768254642689,-728.0,0.00019583,2]
[401475875,1768254642698,-254794.920324,0.00019583,2]
[401475877,1768254642707,-303.10001603,0.00019656,2]
[401475879,1768254642718,-800.0,0.00019676,2]
[401475881,1768254642727,-800.0,0.00019687,2]
[401475883,1768254642736,-800.0,0.00019691,2]
[401475885,1768254642745,-496.8292533,0.00019707,2]
[401475887,1768254642754,-250.0,0.00019726,2]
[401475889,1768254642763,-800.0,0.00019748,2]
[401475891,1768254642771,-3795.8918098,0.00019823,2]
[401475893,1768254642780,-62596.8121332,0.00019823,2]
[401475895,1768254642789,-823.1558897,0.00019823,2]
[401475897,1768254642798,-3016.1375087,0.00019823,2]
[401475899,1768254642807,-800.0,0.00019835,2]
[401475900,1768254642817,-728.0,0.0001984,2]
[401475902,1768254642826,-454.53633729,0.00019845,4]
[401475904,1768254642835,-800.0,0.00019857,2]
[401475906,1768254642845,-800.0,0.00019879,2]
[401475908,1768254642854,-151.0,0.00019879,2]
[401475909,1768254642864,-511.41371224,0.00019889,2]
[401475911,1768254642873,-2045.65484897,0.00019889,2]
[401475913,1768254642883,-4598.12068678,0.00019889,2]
[401475915,1768254642891,-469.53989352,0.00019889,2]
[401475917,1768254642900,-1878.15957409,0.00019889,2]
[401475919,1768254642912,-4221.63318266,0.00019889,2]
[401475921,1768254642922,-510.35367637,0.00019889,2]
[401475923,1768254642931,-160.0,0.00019899,2]
[401475925,1768254642940,-778.0,0.000199,2]
[401475927,1768254642949,-347.0,0.0001995,2]
[401475929,1768254642958,-347.0,0.0001995,2]
[401475931,1768254642968,-152.0,0.0001995,2]
[401475933,1768254642980,-166.0,0.0001995,2]
[401475935,1768254642989,-347.0,0.0001995,2]
[401475937,1768254642999,-154.66138278,0.0001995,2]
[401475939,1768254643008,-152.0,0.0001995,2]
[401475941,1768254643019,-166.0,0.0001995,2]
[401475943,1768254643028,-347.0,0.0001995,2]
[401475945,1768254643036,-152.0,0.0001995,2]
[401475947,1768254643046,-337.0,0.0001995,2]
[401475948,1768254643056,-166.0,0.0001995,2]
[401475951,1768254643066,-347.0,0.0001995,2]
[401475952,1768254643076,-337.0,0.0001995,2]
[401475954,1768254643085,-152.0,0.0001995,2]
[401475956,1768254643095,-166.0,0.0001995,2]
[401475958,1768254643104,-347.0,0.0001995,2]
[401475960,1768254643114,-337.0,0.0001995,2]
[401475962,1768254643123,-152.0,0.0001995,2]
[401475964,1768254643135,-347.0,0.0001995,2]
[401475966,1768254643145,-166.0,0.0001995,2]
[401475968,1768254643154,-152.0,0.0001995,2]
[401475970,1768254643163,-337.0,0.0001995,2]
[401475972,1768254643172,-347.0,0.0001995,2]
[401475974,1768254643181,-166.0,0.0001995,2]
[401475976,1768254643190,-152.0,0.0001995,2]
[401475978,1768254643199,-337.0,0.0001995,2]
[401475980,1768254643208,-347.0,0.0001995,2]
[401475982,1768254643218,-166.0,0.0001995,2]
[401475984,1768254643228,-337.0,0.0001995,2]
[401475986,1768254643238,-152.0,0.0001995,2]
[401475988,1768254643247,-347.0,0.0001995,2]
[401475990,1768254643255,-151.0,0.0001995,2]
[401475992,1768254643265,-172.0,0.0001995,2]
[401475994,1768254643274,-337.0,0.0001995,2]
[401475996,1768254643284,-347.0,0.0001995,2]
[401475998,1768254643293,-298.51382573,0.0001995,2]
[401476000,1768254643303,-151.0,0.0001995,2]
[401476002,1768254643312,-337.0,0.0001995,2]
[401476003,1768254643322,-347.0,0.0001995,2]
[401476005,1768254643339,-151.0,0.0001995,2]
[401476007,1768254643349,-337.0,0.0001995,2]
[401476009,1768254643359,-347.0,0.0001995,2]
[401476011,1768254643369,-151.0,0.0001995,2]
[401476013,1768254643379,-337.0,0.0001995,2]
[401476015,1768254643389,-347.0,0.0001995,2]
[401476017,1768254643399,-151.0,0.0001995,2]
[401476019,1768254643409,-337.0,0.0001995,2]
[401476021,1768254643419,-347.0,0.0001995,2]
[401476023,1768254643429,-337.0,0.0001995,2]
[401476025,1768254643443,-151.0,0.0001995,2]
[401476028,1768254643454,-337.0,0.0001995,2]
[401476029,1768254643464,-151.0,0.0001995,2]
[401476031,1768254643475,-337.0,0.0001995,2]
[401476033,1768254643488,-347.0,0.0001995,2]
[401476035,1768254643498,-151.0,0.0001995,2]
[401476037,1768254643509,-151.0,0.0001995,2]
[401476039,1768254643519,-337.0,0.0001995,2]
[401476042,1768254643535,-347.0,0.0001995,2]
[401476043,1768254643548,-151.0,0.0001995,2]
[401476045,1768254643559,-337.0,0.0001995,2]
[401476048,1768254643570,-347.0,0.0001995,2]
[401476049,1768254643579,-151.0,0.0001995,2]
[401476051,1768254643589,-151.0,0.0001995,2]
[401476053,1768254643599,-337.0,0.0001995,2]
[401476055,1768254643608,-347.0,0.0001995,2]
[401476057,1768254643618,-151.0,0.0001995,2]
[401476059,1768254643628,-337.0,0.0001995,2]
[401476061,1768254643638,-151.0,0.0001995,2]
[401476063,1768254643651,-347.0,0.0001995,2]
[401476065,1768254643660,-337.0,0.0001995,2]
[401476067,1768254643669,-151.0,0.0001995,2]
[401476069,1768254643678,-347.0,0.0001995,2]
[401476071,1768254643687,-337.0,0.0001995,2]
[401476073,1768254643696,-151.0,0.0001995,2]
[401476075,1768254643706,-151.0,0.0001995,2]
[401476077,1768254643715,-337.0,0.0001995,2]
[401476079,1768254643724,-199.32099567,0.0001995,2]
[401476081,1768254643737,-347.0,0.0001995,2]
[401476083,1768254643746,-151.0,0.0001995,2]
[401476085,1768254643756,-337.0,0.0001995,2]
[401476087,1768254643765,-347.0,0.0001995,2]
[401476089,1768254643775,-151.0,0.0001995,2]
[401476091,1768254643784,-337.0,0.0001995,2]
[401476093,1768254643793,-347.0,0.0001995,2]
[401476095,1768254643804,-151.0,0.0001995,2]
[401476097,1768254643813,-347.0,0.0001995,2]
[401476099,1768254643822,-337.0,0.0001995,2]
[401476101,1768254643831,-151.0,0.0001995,2]
[401476102,1768254643840,-347.0,0.0001995,2]
[401476104,1768254643850,-337.0,0.0001995,2]
[401476106,1768254643859,-347.0,0.0001995,2]
[401476108,1768254643868,-337.0,0.0001995,2]
[401476110,1768254643878,-337.0,0.0001995,2]
[401476112,1768254643887,-347.0,0.0001995,2]
[401476114,1768254643897,-151.0,0.0001995,2]
[401476116,1768254643907,-337.0,0.0001995,2]
[401476119,1768254643917,-347.0,0.0001995,2]
[401476121,1768254643927,-151.0,0.0001995,2]
[401476123,1768254643938,-337.0,0.0001995,2]
[401476125,1768254643947,-347.0,0.0001995,2]
[401476127,1768254643957,-151.0,0.0001995,2]
[401476129,1768254643969,-416.19601909,0.0001995,2]
[401476131,1768254643984,-347.0,0.0001995,2]
[401476133,1768254643994,-151.0,0.0001995,2]
[401476134,1768254644004,-347.0,0.0001995,2]
[401476136,1768254644013,-151.0,0.0001995,2]
[401476139,1768254644023,-347.0,0.0001995,2]
[401476141,1768254644032,-151.0,0.0001995,2]
[401476142,1768254644042,-151.0,0.0001995,2]
[401476144,1768254644052,-214.08732261,0.0001995,2]
[401476146,1768254644062,-431378.47987248,0.0001995,2]
[401476149,1768254644080,-7863.07939744,0.0001995,2]
[401476160,1768254644170,-272.71,0.0001995,2]
[401476296,1768254645746,-300.3117252,0.0001995,2]
[401476338,1768254646160,-946.91365206,0.0001995,2]
[401476494,1768255641787,31.27881921,0.00025172,94]
[401476495,1768255641807,185.36863683,0.00025172,94]
[401476496,1768255641827,50.62902306,0.00025172,94]
[401476497,1768255642488,134.73961377,0.00025313,102]
[401476498,1768255642509,132.53686533,0.00025313,102]
[401476519,1768255832128,-429.209,0.00012909,2]
[401476521,1768255832141,-603.0,0.00012909,2]
[401476523,1768255832153,-45.88016142,0.00012917,2]
[401476526,1768255832167,-244.91222591,0.00012917,2]
[401476528,1768255832179,-172.25280827,0.00012926,2]
[401476531,1768255832193,-294.25611153,0.00012926,2]
[401476610,1768255838175,-33.4910802,0.00012926,2]
[401476611,1768255838187,-500.0,0.00013063,2]
[401476612,1768255838198,-300.0,0.00013071,2]
[401476613,1768255838209,-1200.0,0.00013071,2]
[401476614,1768255838222,-1000000.0,0.00013072,2]
[401476615,1768255838233,-2722.39961049,0.000131,2]
[401476616,1768255838244,-158.22514852,0.00013172,2]
[401476617,1768255838255,-500.0,0.00013172,2]
[401476618,1768255838265,-500.0,0.00013172,2]
[401476619,1768255838276,-294.24554015,0.00013172,2]
[401476620,1768255838438,-500.0,0.00013172,2]
[401476621,1768255838454,-500.0,0.00013172,2]
[401476622,1768255838464,-500.0,0.00013172,2]
[401476623,1768255838474,-500.0,0.00013172,2]
[401476624,1768255838483,-424.02633665,0.00013172,2]